bitfinex-derivatives/quotes_BTCF0:USTF0_20250327
["timestamp","ask_amount","ask_price","bid_price","bid_amount"]
[1743099850317,0.002,87143.0,87142.0,0.2262234]
[1743099852121,0.117626,87143.0,87142.0,0.2262234]
[1743099853315,0.152126,87143.0,87142.0,0.2262234]
[1743099854921,0.152126,87143.0,87142.0,0.07374]
[1743099855122,0.221326,87143.0,87142.0,0.00084]
[1743099855823,0.221326,87143.0,87142.0,0.1156273]
[1743099856213,0.221326,87143.0,87142.0,0.00084]
[1743099857723,0.057395,87140.0,87137.0,0.00017222]
[1743099857923,0.1147926,87138.0,87137.0,0.00097222]
[1743099858223,0.1155926,87138.0,87137.0,0.00097222]
[1743099858425,0.1868926,87138.0,87137.0,0.00097222]
[1743099858924,0.93593185,87138.0,87137.0,2e-08]
[1743099859226,0.0574042,87126.0,87120.0,0.27245145]
[1743099859437,0.1148137,87122.0,87121.0,0.0361]
[1743099859623,0.1148137,87122.0,87121.0,0.00068]
[1743099859924,0.30227395,87122.0,87121.0,0.00068]
[1743099860118,0.114815,87121.0,87120.0,0.27245145]
[1743099860314,0.12737359,87121.0,87120.0,0.27309145]
[1743099860527,0.19937359,87121.0,87120.0,0.27309145]
[1743099860829,0.31415713,87121.0,87120.0,0.27309145]
[1743099861622,0.31515713,87121.0,87120.0,0.27309145]
[1743099862828,0.31615713,87121.0,87120.0,0.27309145]
[1743099863931,0.31615713,87121.0,87120.0,0.00064]
[1743099864231,0.1148216,87116.0,87115.0,0.0734]
[1743099864429,0.4763016,87116.0,87115.0,0.074]
[1743099864624,0.5880616,87116.0,87115.0,0.0734]
[1743099865126,0.6614616,87116.0,87115.0,0.0734]
[1743099865622,0.6624616,87116.0,87115.0,0.074]
[1743099866137,0.6634616,87116.0,87115.0,0.074]
[1743099866639,0.4783016,87116.0,87115.0,0.1888229]
[1743099866935,0.00268,87116.0,87115.0,0.5496229]
[1743099867134,0.002,87116.0,87115.0,0.56190095]
[1743099869734,0.1168216,87116.0,87115.0,0.5496229]
[1743099869931,0.11742161,87116.0,87115.0,0.5496229]
[1743099871031,0.11742161,87116.0,87115.0,0.1888229]
[1743099872028,0.1168216,87116.0,87115.0,0.1888229]
[1743099872233,0.00268,87116.0,87115.0,0.1888229]
[1743099872738,0.1175016,87116.0,87115.0,0.1888229]
[1743099872943,0.1168216,87116.0,87115.0,0.1888229]
[1743099873833,0.15262161,87116.0,87115.0,0.1888229]
[1743099874044,0.18782161,87116.0,87115.0,0.1888229]
[1743099874837,0.07300001,87116.0,87115.0,0.1888229]
[1743099875337,0.11742161,87116.0,87115.0,0.1888229]
[1743099876545,0.00260001,87116.0,87115.0,0.1888229]
[1743099876931,0.11742161,87116.0,87115.0,0.1888229]
[1743099877539,0.15162161,87116.0,87115.0,0.1888229]
[1743099877743,0.18612161,87116.0,87115.0,0.1888229]
[1743099879038,0.19493895,87116.0,87115.0,0.1888229]
[1743099879834,0.19493895,87116.0,87115.0,0.074]
[1743099880041,0.1722712,87097.0,87096.0,0.1722617]
[1743099880350,0.1722712,87097.0,87096.0,0.2809617]
[1743099880351,0.17287121,87097.0,87096.0,0.2809617]
[1743099880645,0.18168052,87097.0,87096.0,0.2809617]
[1743099880950,0.18168071,87097.0,87096.0,0.2809617]
[1743099881149,0.18168071,87097.0,87096.0,0.2829617]
[1743099881452,0.19389884,87097.0,87096.0,0.2829617]
[1743099881952,0.19389884,87097.0,87096.0,0.0026]
[1743099882143,0.19389884,87097.0,87096.0,0.002]
[1743099882144,0.200642,87097.0,87096.0,0.002]
[1743099882343,0.200642,87097.0,87096.0,0.004]
[1743099882551,0.237142,87097.0,87096.0,0.004]
[1743099882750,0.273142,87097.0,87096.0,0.004]
[1743099882952,0.384902,87097.0,87096.0,0.004]
[1743099883549,0.384902,87097.0,87096.0,0.002]
[1743099883752,0.1148519,87093.0,87092.0,0.114853]
[1743099884048,0.12426141,87093.0,87092.0,0.115453]
[1743099884353,0.23602141,87093.0,87092.0,0.149853]
[1743099884555,0.24276822,87093.0,87092.0,0.149853]
[1743099884757,0.27726822,87093.0,87092.0,0.149853]
[1743099885155,0.16550822,87093.0,87092.0,0.149853]
[1743099885849,0.16550822,87093.0,87092.0,0.035]
[1743099886242,0.16650822,87093.0,87092.0,0.035]
[1743099886456,0.16650822,87093.0,87092.0,0.1498532]
[1743099886656,0.16650822,87093.0,87092.0,0.035]
[1743099886957,0.16750822,87093.0,87092.0,0.035]
[1743099887653,0.16750822,87093.0,87092.0,0.0006]
[1743099887958,0.52830822,87093.0,87092.0,0.0006]
[1743099888157,0.1148558,87090.0,87089.0,0.1148566]
[1743099888354,0.1148572,87089.0,87088.0,0.00017222]
[1743099888548,0.19531035,87089.0,87088.0,0.00017222]
[1743099889048,0.20205351,87089.0,87088.0,0.00017222]
[1743099889254,0.20205351,87089.0,87088.0,0.00077222]
[1743099889451,0.20205351,87089.0,87088.0,0.00017222]
[1743099889653,0.31687923,87089.0,87088.0,0.00017222]
[1743099890052,0.31787923,87089.0,87088.0,0.00017222]
[1743099890856,0.31887923,87089.0,87088.0,0.00017222]
[1743099892963,0.1148664,87082.0,87081.0,8e-05]
[1743099893161,0.114873,87077.0,87076.0,0.0374]
[1743099893459,0.1723338,87065.0,87064.0,8e-05]
[1743099893660,0.1723338,87065.0,87064.0,0.00088]
[1743099893661,0.18114695,87065.0,87064.0,0.00088]
[1743099893961,0.18114695,87065.0,87064.0,0.1156901]
[1743099893962,0.29244695,87065.0,87064.0,0.1156901]
[1743099894151,0.20478845,87065.0,87056.0,0.00025222]
[1743099894357,0.1148994,87057.0,87056.0,0.00077222]
[1743099894557,0.25148252,87057.0,87056.0,0.00077222]
[1743099894962,0.25853793,87057.0,87056.0,0.00077222]
[1743099895263,0.31726797,87057.0,87056.0,0.00077222]
[1743099895468,0.31726797,87057.0,87056.0,0.00017222]
[1743099895855,0.114906,87052.0,87051.0,8e-05]
[1743099896060,0.13683293,87052.0,87051.0,0.00068]
[1743099896259,0.13683293,87052.0,87051.0,0.0006]
[1743099896458,0.14388834,87052.0,87051.0,0.0006]
[1743099896673,0.33005627,87052.0,87051.0,0.0006]
[1743099896963,0.33005627,87052.0,87051.0,0.0046]
[1743099897354,0.34138885,87052.0,87051.0,0.0086]
[1743099897559,0.31750193,87052.0,87051.0,0.0086]
[1743099897773,0.3419332,87052.0,87051.0,0.0086]
[1743099897965,0.34193263,87052.0,87051.0,0.0086]
[1743099898267,0.33551958,87052.0,87051.0,0.0046]
[1743099898469,0.33551958,87052.0,87051.0,0.0026]
[1743099898670,0.33551958,87052.0,87051.0,0.002]
[1743099898963,0.1149139,87046.0,87045.0,8e-05]
[1743099899165,0.61279859,87046.0,87045.0,8e-05]
[1743099899564,0.63106059,87046.0,87045.0,8e-05]
[1743099899864,0.1149165,87044.0,87043.0,0.00017222]
[1743099900068,0.13228834,87044.0,87043.0,0.00017222]
[1743099900458,0.16528834,87044.0,87043.0,0.00017222]
[1743099900767,0.91097078,87044.0,87043.0,2e-08]
[1743099901070,0.90897078,87044.0,87043.0,2e-08]
[1743099901255,0.0574605,87041.0,87029.0,0.0367]
[1743099901564,0.1149337,87031.0,87030.0,0.0379]
[1743099901766,0.61290483,87031.0,87030.0,0.0379]
[1743099902266,0.59797013,87031.0,87030.0,0.0385]
[1743099902469,0.67087013,87031.0,87030.0,0.0385]
[1743099902971,0.66887013,87031.0,87030.0,0.0379]
[1743099903163,0.68371045,87031.0,87030.0,0.0379]
[1743099903369,0.68371045,87031.0,87030.0,0.0385]
[1743099903556,0.68371045,87031.0,87030.0,0.0379]
[1743099903757,0.68371045,87031.0,87030.0,0.0389]
[1743099903961,0.68567899,87031.0,87027.0,8e-05]
[1743099904263,0.1149443,87023.0,87021.0,0.1149465]
[1743099904474,0.50090105,87023.0,87022.0,0.15334147]
[1743099904768,0.50090105,87023.0,87022.0,0.07609587]
[1743099904968,0.50090105,87023.0,87022.0,0.07541587]
[1743099905272,0.50090105,87023.0,87022.0,0.19096147]
[1743099905273,0.5811153,87023.0,87022.0,0.19096147]
[1743099905662,0.5811153,87023.0,87022.0,0.07601587]
[1743099905862,0.5811153,87023.0,87022.0,0.07541587]
[1743099906061,0.5811153,87023.0,87022.0,0.07801587]
[1743099906467,0.5811153,87023.0,87022.0,0.08041587]
[1743099906769,0.5811153,87023.0,87022.0,0.08101587]
[1743099907359,0.5811153,87023.0,87022.0,0.08041587]
[1743099908268,0.5811153,87023.0,87022.0,0.08109587]
[1743099908868,0.5811153,87023.0,87022.0,0.08041587]
[1743099909076,0.5811153,87023.0,87022.0,0.08109587]
[1743099909875,0.59233175,87023.0,87022.0,0.08109587]
[1743099911468,0.59242343,87023.0,87022.0,0.08109587]
[1743099912469,0.57419273,87023.0,87022.0,0.08109587]
[1743099913072,0.68910553,87023.0,87022.0,0.08109587]
[1743099913268,0.68910553,87023.0,87022.0,0.08041587]
[1743099913584,0.67520804,87023.0,87022.0,0.07541587]
[1743099913870,0.67620804,87023.0,87022.0,0.07541587]
[1743099914065,0.79494027,87023.0,87022.0,0.07885555]
[1743099915269,0.79394027,87023.0,87022.0,0.07885555]
[1743099915470,0.79594027,87023.0,87022.0,0.07885555]
[1743099915972,0.0574748,87019.0,87015.0,8e-05]
[1743099916177,0.3608,87016.0,87008.0,0.0349]
[1743099916477,0.3608,87016.0,87000.0,0.10008]
[1743099916478,0.1149733,87001.0,87000.0,0.10008]
[1743099916671,0.12532424,87001.0,87000.0,0.1006]
[1743099916872,0.13221647,87001.0,87000.0,0.1006]
[1743099917067,0.21558877,87001.0,87000.0,0.1006]
[1743099917476,0.21551494,87001.0,87000.0,0.1006]
[1743099918073,0.21551494,87001.0,87000.0,0.2155747]
[1743099918373,0.21551494,87001.0,87000.0,0.1036]
[1743099918676,0.24304085,87001.0,87000.0,0.2185747]
[1743099918873,0.24304085,87001.0,87000.0,0.2225747]
[1743099919574,0.24304085,87001.0,87000.0,0.2943747]
[1743099919767,0.35798271,87001.0,87000.0,0.1794]
[1743099920086,0.35798271,87001.0,87000.0,0.1788]
[1743099920979,0.37006141,87001.0,87000.0,0.1439]
[1743099921182,0.37006141,87001.0,87000.0,0.107]
[1743099921377,0.37005038,87001.0,87000.0,0.104]
[1743099921577,0.37005038,87001.0,87000.0,0.105]
[1743099921879,0.37005038,87001.0,86993.0,0.0379]
[1743099921880,0.1149826,86994.0,86993.0,0.0379]
[1743099922080,0.15867839,86994.0,86993.0,0.0763]
[1743099922276,0.24388684,86994.0,86993.0,0.0757]
[1743099923066,0.25272083,86994.0,86993.0,0.0757]
[1743099923271,0.25272083,86994.0,86993.0,0.0787]
[1743099923671,0.25272083,86994.0,86993.0,0.0807]
[1743099924078,0.25272083,86994.0,86993.0,0.0813]
[1743099924691,0.25272083,86994.0,86993.0,0.0056]
[1743099924880,0.25272083,86994.0,86993.0,0.005]
[1743099925080,0.25272083,86994.0,86993.0,0.0744]
[1743099925268,0.25254377,86994.0,86993.0,0.0744]
[1743099925473,0.25254377,86994.0,86993.0,0.07508]
[1743099926678,0.2582944,86994.0,86993.0,0.07508]
[1743099927284,0.25853509,86994.0,86993.0,0.07508]
[1743099927482,0.25853509,86994.0,86993.0,0.04920213]
[1743099927782,0.24336813,86994.0,86993.0,0.04920213]
[1743099928172,0.24336813,86994.0,86993.0,0.04852213]
[1743099928974,0.24336813,86994.0,86993.0,0.04912213]
[1743099929582,0.24336813,86994.0,86993.0,0.04852213]
[1743099930474,0.24336813,86994.0,86993.0,0.04912213]
[1743099930678,0.24336813,86994.0,86993.0,0.04852213]
[1743099930984,0.24287686,86994.0,86993.0,0.04852213]
[1743099931582,0.35475686,86994.0,86993.0,0.04852213]
[1743099931781,0.35475686,86994.0,86993.0,0.04912213]
[1743099931982,0.15519224,86994.0,86993.0,0.16410603]
[1743099932383,0.15519224,86994.0,86993.0,0.04912213]
[1743099932587,0.55059224,86994.0,86993.0,0.04912213]
[1743099933190,0.53941994,86994.0,86993.0,0.04852213]
[1743099933374,0.58287035,86994.0,86993.0,0.16410603]
[1743099933576,0.58287035,86994.0,86993.0,0.16350603]
[1743099933886,0.56813186,86994.0,86993.0,0.16410603]
[1743099934392,0.53043186,86994.0,86993.0,0.16410603]
[1743099934877,0.52353963,86994.0,86993.0,0.16410603]
[1743099935077,0.48893963,86994.0,86993.0,0.16410603]
[1743099935475,0.48893963,86994.0,86993.0,0.04912213]
[1743099935680,0.52453963,86994.0,86993.0,0.16410603]
[1743099936181,0.52453963,86994.0,86993.0,0.04912213]
[1743099936386,0.52453963,86994.0,86993.0,0.04852213]
[1743099936387,0.56033963,86994.0,86993.0,0.04852213]
[1743099936587,0.55993989,86994.0,86993.0,0.16410603]
[1743099938384,0.55991357,86994.0,86993.0,0.16410603]
[1743099940283,0.55992175,86994.0,86993.0,0.16410603]
[1743099942391,0.55993796,86994.0,86993.0,0.16410603]
[1743099942984,0.55993796,86994.0,86993.0,0.04912213]
[1743099943593,0.55993796,86994.0,86993.0,0.16410603]
[1743099944493,0.69712525,86994.0,86993.0,0.16410603]
[1743099946085,0.66133164,86994.0,86993.0,0.16410603]
[1743099946682,0.14994904,86994.0,86993.0,0.16410603]
[1743099946883,0.17142822,87000.0,86999.0,0.114976]
[1743099947085,0.17214822,87000.0,86999.0,0.115576]
[1743099947478,0.17214822,87000.0,86999.0,0.16350862]
[1743099947689,0.20698639,87000.0,86999.0,0.16350862]
[1743099947989,0.32196109,87000.0,86999.0,0.16350862]
[1743099948386,0.20698639,87000.0,86999.0,0.16350862]
[1743099948584,0.32196109,87000.0,86999.0,0.151576]
[1743099948789,0.35646109,87000.0,86999.0,0.151576]
[1743099949592,0.32196109,87000.0,86999.0,0.151576]
[1743099950684,0.35796109,87000.0,86999.0,0.151576]
[1743099951081,0.20698639,87000.0,86999.0,0.151576]
[1743099951591,0.00072,87000.0,86999.0,0.151576]
[1743099952187,0.1516947,87000.0,86999.0,0.151576]
[1743099953588,0.1903947,87000.0,86999.0,0.151576]
[1743099955690,0.07542,87000.0,86999.0,0.151576]
[1743099956489,0.0747,87000.0,86999.0,0.151576]
[1743099956685,0.03676,87000.0,86999.0,0.151576]
[1743099956998,0.00076,87000.0,86999.0,0.151576]
[1743099957300,0.10329961,87002.0,87001.0,0.1149733]
[1743099957497,0.10329961,87002.0,87001.0,0.1155733]
[1743099957684,0.10329961,87002.0,87001.0,0.1537733]
[1743099958486,0.10429961,87002.0,87001.0,0.1537733]
[1743099959896,0.001,87002.0,87001.0,0.1537733]
[1743099960098,0.10329961,87007.0,87006.0,0.1149667]
[1743099960295,0.10401961,87007.0,87006.0,0.2275667]
[1743099960603,0.21898501,87007.0,87006.0,0.1529867]
[1743099961100,0.29158501,87007.0,87006.0,0.1529867]
[1743099961301,0.29158501,87007.0,87006.0,0.1156867]
[1743099961698,0.29558501,87007.0,87006.0,0.1156867]
[1743099962094,0.29558501,87007.0,87006.0,0.00072]
[1743099962291,0.1724732,86996.0,86995.0,0.1724615]
[1743099962501,0.1731932,86996.0,86995.0,0.1731415]
[1743099962699,0.1724732,86996.0,86995.0,0.2305514]
[1743099962906,0.0583306,86996.0,86995.0,0.2305514]
[1743099963101,0.0574884,86999.0,86997.0,0.1149786]
[1743099963102,0.1896779,86998.0,86997.0,0.1149786]
[1743099963406,0.1903979,86998.0,86997.0,0.1155786]
[1743099963605,0.1903979,86998.0,86997.0,0.1513786]
[1743099964404,0.07542,86998.0,86997.0,0.1870786]
[1743099964606,0.46809961,87007.0,86997.0,0.1870786]
[1743099964607,0.01184985,87006.0,87005.0,0.1149681]
[1743099964903,0.01252985,87006.0,87005.0,0.48837684]
[1743099965205,0.01184985,87006.0,87005.0,0.48837684]
[1743099965406,0.20626639,87014.0,87013.0,0.1149575]
[1743099965603,0.20626639,87014.0,87013.0,0.5882775]
[1743099965604,0.20690639,87014.0,87013.0,0.5882775]
[1743099965808,0.152843,87024.0,87023.0,0.1149443]
[1743099966008,0.03882,87024.0,87023.0,0.1158643]
[1743099966307,0.153763,87024.0,87023.0,0.1158643]
[1743099967105,0.158763,87024.0,87023.0,0.1158643]
[1743099967399,0.04382,87024.0,87023.0,0.1158643]
[1743099967798,0.04382,87024.0,87023.0,0.4766643]
[1743099968403,0.08102,87024.0,87023.0,0.4766643]
[1743099969205,0.08602,87024.0,87023.0,0.4766643]
[1743099969406,0.200963,87024.0,87023.0,0.4766643]
[1743099969907,0.200963,87024.0,87023.0,0.5885443]
[1743099970601,0.200963,87024.0,87023.0,0.4766643]
[1743099970808,0.200963,87024.0,87023.0,0.5885443]
[1743099971307,0.200963,87024.0,87023.0,0.4766643]
[1743099971506,0.238863,87024.0,87023.0,0.4766643]
[1743099977405,0.12392,87024.0,87023.0,0.4766643]
[1743099977605,0.08602,87024.0,87023.0,0.4766643]
[1743099977805,8e-05,87030.0,87029.0,0.1149364]
[1743099978007,8e-05,87030.0,87029.0,0.1160964]
[1743099978814,8e-05,87030.0,87029.0,0.12790377]
[1743099979206,0.00308,87030.0,87029.0,0.12790377]
[1743099979807,0.00308,87030.0,87029.0,0.16420377]
[1743099981809,0.00308,87030.0,87029.0,0.3025364]
[1743099981810,0.118015,87030.0,87029.0,0.3025364]
[1743099982208,0.00308,87030.0,87029.0,0.3025364]
[1743099982917,0.00308,87030.0,87029.0,0.31429084]
[1743099983218,0.00308,87030.0,87029.0,0.35329084]
[1743099984518,0.00308,87030.0,87029.0,0.3415364]
[1743099984725,0.00308,87030.0,87029.0,0.3032364]
[1743099985019,0.07618,87030.0,87029.0,0.3032364]
[1743099985316,0.07730001,87030.0,87029.0,0.3032364]
[1743099985519,0.19223501,87030.0,87029.0,0.3032364]
[1743099985722,0.19223501,87030.0,87029.0,0.31517148]
[1743099985916,0.07730001,87030.0,87029.0,0.31517148]
[1743099987222,0.00420001,87030.0,87029.0,0.31517148]
[1743099987522,0.00308,87030.0,87029.0,0.31517148]
[1743099987722,0.00428001,87030.0,87029.0,0.31517148]
[1743099987923,0.00420001,87030.0,87029.0,0.31517148]
[1743099988315,0.00308,87030.0,87029.0,0.31517148]
[1743099988913,0.00420001,87030.0,87029.0,0.31517148]
[1743099989118,0.00308,87030.0,87029.0,0.3032364]
[1743099989824,0.00368001,87030.0,87029.0,0.3032364]
[1743099990209,0.11861501,87030.0,87029.0,0.31491726]
[1743099990421,0.11861501,87030.0,87029.0,0.3032364]
[1743099990619,0.11861501,87030.0,87029.0,0.1883]
[1743099990925,0.22941501,87030.0,87029.0,0.3032364]
[1743099991617,0.22941501,87030.0,87029.0,0.1160964]
[1743099992017,0.22941501,87030.0,87029.0,0.1536964]
[1743099993121,0.22941501,87030.0,87029.0,0.1907964]
[1743099993626,0.22941501,87030.0,87029.0,0.00116]
[1743099993820,0.22941501,87030.0,87029.0,0.1160964]
[1743099995721,0.22941501,87030.0,87029.0,0.00116]
[1743099996027,0.22941501,87030.0,87020.0,0.1149482]
[1743099996028,0.1149469,87021.0,87020.0,0.1149482]
[1743099996330,0.11614691,87021.0,87020.0,0.1160682]
[1743099996513,0.19064691,87021.0,87020.0,0.1160682]
[1743099997233,0.19064691,87021.0,87020.0,0.00212]
[1743099997234,0.19727342,87021.0,87020.0,0.00212]
[1743099997431,0.19727342,87021.0,87020.0,0.001]
[1743099997625,0.19727342,87021.0,87020.0,0.00312]
[1743099998629,0.19727342,87021.0,87020.0,0.002]
[1743099998835,0.31218887,87021.0,87020.0,0.002]
[1743099999232,0.31218887,87021.0,87015.0,0.20444173]
[1743099999233,0.1149535,87016.0,87015.0,0.20444173]
[1743099999438,0.1149588,87012.0,87011.0,0.27245145]
[1743099999740,0.1149681,87005.0,86992.0,0.0352]
[1743099999926,0.114976,86999.0,86998.0,0.41157403]
[1743100000127,0.115856,86999.0,86998.0,0.41221403]
[1743100000334,0.13098638,86999.0,86998.0,0.41213403]
[1743100000530,0.48878638,86999.0,86998.0,0.41213403]
[1743100000833,0.55378251,86999.0,86998.0,0.41213403]
[1743100001326,0.56241737,86999.0,86998.0,0.41213403]
[1743100001517,0.55579086,86999.0,86998.0,0.00064]
[1743100001722,0.1149813,86995.0,86994.0,0.1150626]
[1743100001916,0.1157813,86995.0,86994.0,0.1157026]
[1743100002135,0.12239768,86995.0,86994.0,0.1157026]
[1743100002629,0.12239768,86995.0,86994.0,0.1901026]
[1743100002818,0.0008,86995.0,86994.0,0.1901026]
[1743100003023,0.1149725,87002.0,87001.0,0.114972]
[1743100003223,0.0371,87014.0,87001.0,0.114972]
[1743100003224,0.1149689,87005.0,87004.0,0.1149681]
[1743100003428,0.36177242,87007.0,87006.0,0.1149667]
[1743100003625,0.36257242,87007.0,87006.0,0.1155667]
[1743100003824,0.00097242,87007.0,87006.0,0.1155667]
[1743100004025,0.11513782,87007.0,87006.0,0.1899667]
[1743100004232,0.11593782,87007.0,87006.0,0.1899667]
[1743100005427,0.11593782,87007.0,87006.0,0.1919667]
[1743100005629,0.00097242,87007.0,87006.0,0.1919667]
[1743100006134,0.00097242,87007.0,87006.0,0.1929667]
[1743100006722,0.1716103,87009.0,87008.0,0.1149641]
[1743100006923,0.17221031,87009.0,87008.0,0.1155641]
[1743100008333,0.17221031,87009.0,87008.0,0.1165641]
[1743100010034,0.00060001,87009.0,87008.0,0.1165641]
[1743100010234,0.00017242,87017.0,87016.0,0.1149535]
[1743100010431,0.00077243,87017.0,87016.0,0.2273935]
[1743100010638,0.00017242,87017.0,87016.0,0.2273935]
[1743100011235,0.10289031,87025.0,87024.0,0.114943]
[1743100011538,0.10365031,87025.0,87024.0,0.115623]
[1743100011839,0.21859191,87025.0,87024.0,0.115623]
[1743100012231,0.21859191,87025.0,87024.0,0.190523]
[1743100014539,0.1157016,87025.0,87024.0,0.190523]
[1743100016635,0.1538016,87025.0,87024.0,0.190523]
[1743100017030,0.03886,87025.0,87024.0,0.190523]
[1743100017235,8e-05,87025.0,87024.0,0.190523]
[1743100017741,0.0574688,87028.0,87027.0,0.1724052]
[1743100017942,0.05806881,87028.0,87027.0,0.1730052]
[1743100018547,0.17300651,87028.0,87027.0,0.2495052]
[1743100019040,0.17400651,87028.0,87027.0,0.2495052]
[1743100019241,0.21140651,87028.0,87027.0,0.2495052]
[1743100020142,0.00160001,87028.0,87027.0,0.2495052]
[1743100020344,0.001,87028.0,87027.0,0.2495052]
[1743100020843,0.002,87028.0,87027.0,0.2495052]
[1743100021242,0.10297031,87031.0,87028.0,0.057463]
[1743100021432,8e-05,87037.0,87031.0,0.0574607]
[1743100021632,0.13798708,87035.0,87034.0,0.1149183]
[1743100021933,0.206021,87045.0,87039.0,0.1149117]
[1743100021934,8e-05,87042.0,87039.0,0.1149117]
[1743100022131,0.13792239,87040.0,87039.0,0.6460068]
[1743100022742,0.13792239,87040.0,87039.0,0.7184068]
[1743100022942,0.25283269,87040.0,87039.0,0.7184068]
[1743100023136,0.13792239,87040.0,87039.0,0.7184068]
[1743100023343,0.13992239,87040.0,87039.0,0.7184068]
[1743100024247,0.14192239,87040.0,87039.0,0.7184068]
[1743100026647,0.0938294,87049.0,87039.0,0.7184068]
[1743100026648,8e-05,87053.0,87049.0,0.1148985]
[1743100026951,0.17147173,87065.0,87064.0,0.1148787]
[1743100027250,0.17207174,87065.0,87064.0,0.5886787]
[1743100027941,0.17207174,87065.0,87064.0,0.6593787]
[1743100028545,0.17207174,87065.0,87064.0,0.66977988]
[1743100029250,0.20576608,87070.0,87069.0,0.1148721]
[1743100029441,0.20720608,87070.0,87069.0,0.4770321]
[1743100029642,0.20576608,87070.0,87069.0,0.4770321]
[1743100029845,8e-05,87078.0,87072.0,0.1148681]
[1743100030144,8e-05,87078.0,87072.0,0.1162281]
[1743100030642,0.0574314,87076.0,87072.0,0.1162281]
[1743100030842,0.1148663,87074.0,87072.0,0.1162281]
[1743100031042,0.00153231,87073.0,87072.0,0.1162281]
[1743100031642,0.00017231,87073.0,87072.0,0.1162281]
[1743100031844,0.11503911,87073.0,87072.0,0.1162281]
[1743100032047,0.11639911,87073.0,87072.0,0.1162281]
[1743100032238,0.00153231,87073.0,87072.0,0.1162281]
[1743100032443,0.00017231,87073.0,87072.0,0.1162281]
[1743100032749,0.00161231,87073.0,87072.0,0.1162281]
[1743100033454,0.03811231,87073.0,87072.0,0.1162281]
[1743100034051,0.03883221,87073.0,87072.0,0.1162281]
[1743100034251,0.0574241,87087.0,87086.0,0.1722712]
[1743100034451,0.0574241,87087.0,87086.0,0.6081712]
[1743100034452,0.0587841,87087.0,87086.0,0.6081712]
[1743100034646,0.05802411,87087.0,87086.0,0.6081712]
[1743100034955,0.00032,87093.0,87091.0,0.114843]
[1743100035151,0.1,87100.0,87099.0,0.1148325]
[1743100035455,0.00336218,87100.0,87099.0,0.4772325]
[1743100035847,0.00328218,87100.0,87099.0,0.4772325]
[1743100036050,0.00328218,87100.0,87099.0,0.5496325]
[1743100036648,0.00528218,87100.0,87099.0,0.5496325]
[1743100036843,9e-08,87101.0,87100.0,0.1148312]
[1743100037151,9e-08,87101.0,87100.0,0.4772712]
[1743100037460,9e-08,87101.0,87100.0,0.5496712]
[1743100038857,0.00200009,87101.0,87100.0,0.5496712]
[1743100040245,9e-08,87101.0,87100.0,0.5496712]
[1743100041360,9e-08,87101.0,87100.0,0.5853712]
[1743100041560,9e-08,87101.0,87100.0,0.6971312]
[1743100043860,8e-05,87108.0,87107.0,0.114822]
[1743100044049,8e-05,87108.0,87107.0,0.477262]
[1743100044765,8e-05,87108.0,87107.0,0.549362]
[1743100045160,0.00208,87108.0,87107.0,0.549362]
[1743100046163,0.00208,87108.0,87107.0,0.661082]
[1743100047252,0.002,87108.0,87107.0,0.661082]
[1743100047452,0.004,87108.0,87107.0,0.661082]
[1743100048055,0.00019422,87116.0,87115.0,0.1148114]
[1743100048256,0.00019422,87116.0,87115.0,0.4771714]
[1743100048463,0.00011422,87116.0,87115.0,0.5888914]
[1743100048857,0.00011422,87116.0,87115.0,0.66816127]
[1743100049266,0.00411422,87116.0,87115.0,0.66816127]
[1743100050566,0.00511422,87116.0,87115.0,0.66816127]
[1743100051665,0.00511422,87116.0,87115.0,1.02896127]
[1743100051666,0.00111422,87116.0,87115.0,1.02896127]
[1743100052964,0.00111422,87116.0,87115.0,0.91724127]
[1743100053266,0.00111422,87116.0,87115.0,1.02896127]
[1743100053468,0.06825094,87123.0,87122.0,0.1148022]
[1743100053673,0.06825094,87123.0,87122.0,0.4771622]
[1743100053966,0.06825094,87123.0,87122.0,0.5488622]
[1743100055059,0.07025094,87123.0,87122.0,0.5488622]
[1743100055361,0.07225094,87123.0,87122.0,0.5488622]
[1743100056860,0.07225094,87123.0,87122.0,0.6605822]
[1743100060365,0.07225094,87123.0,87122.0,0.5888822]
[1743100060663,0.18705184,87123.0,87122.0,0.36236]
[1743100061260,0.19375591,87123.0,87122.0,0.36236]
[1743100061457,0.20252314,87123.0,87122.0,0.36236]
[1743100061658,0.21224435,87123.0,87122.0,0.36236]
[1743100062357,0.21224435,87123.0,87122.0,0.4771622]
[1743100062560,0.20252314,87123.0,87122.0,0.4771622]
[1743100062762,0.21214383,87123.0,87122.0,0.4771622]
[1743100064475,0.2033766,87123.0,87122.0,0.4771622]
[1743100064963,0.19375591,87123.0,87122.0,0.4771622]
[1743100065969,0.20507933,87123.0,87122.0,0.36236]
[1743100066371,0.20507933,87123.0,87122.0,0.00156]
[1743100067561,0.20507933,87123.0,87122.0,0.4771622]
[1743100068267,0.20507933,87123.0,87122.0,0.36236]
[1743100068670,0.20507933,87123.0,87122.0,0.4771622]
[1743100068870,0.20507933,87123.0,87122.0,0.36236]
[1743100070276,0.20507933,87123.0,87122.0,0.00156]
[1743100070764,0.35507933,87123.0,87122.0,0.00156]
[1743100070971,0.1148114,87115.0,87114.0,0.27288665]
[1743100071275,0.12725483,87115.0,87114.0,0.27396665]
[1743100071485,0.13391153,87115.0,87114.0,0.27396665]
[1743100071774,0.20741153,87115.0,87114.0,0.27396665]
[1743100071977,0.47220298,87115.0,87114.0,1e-08]
[1743100072373,0.1148193,87109.0,87108.0,0.3402242]
[1743100072681,0.23853535,87109.0,87108.0,0.1669842]
[1743100072977,0.1148285,87102.0,87088.0,0.0383]
[1743100073176,0.1148285,87102.0,87084.0,0.0382]
[1743100073177,0.12678455,87102.0,87101.0,0.37109403]
[1743100073384,0.63758455,87102.0,87101.0,0.37109403]
[1743100073567,0.75239313,87102.0,87101.0,0.37109403]
[1743100074472,0.74111708,87102.0,87101.0,0.37109403]
[1743100074979,0.75234342,87102.0,87101.0,0.37109403]
[1743100075170,0.75234342,87102.0,87101.0,1e-08]
[1743100075376,0.1148444,87090.0,87082.0,1.02183205]
[1743100075576,0.58840441,87090.0,87089.0,0.4824355]
[1743100075775,0.057432,87076.0,87069.0,0.0017227]
[1743100076087,0.1148747,87067.0,87066.0,0.190376]
[1743100076281,0.1160347,87067.0,87066.0,0.190976]
[1743100077179,0.1258339,87067.0,87066.0,0.190976]
[1743100077384,0.00116,87067.0,87066.0,0.190976]
[1743100077583,0.1148747,87067.0,87066.0,0.190976]
[1743100077773,0.1160347,87067.0,87066.0,0.190976]
[1743100078290,0.1160347,87067.0,87066.0,0.191976]
[1743100082084,0.1160347,87067.0,87066.0,0.0771]
[1743100082303,0.1160347,87067.0,87066.0,0.191976]
[1743100090086,0.1160347,87067.0,87066.0,0.0771]